bitfinex-derivatives/quotes_SOLF0:USTF0_20260220
["timestamp","ask_amount","ask_price","bid_price","bid_amount"]
[1771608511056,7.32609044,83.221,83.191,46.63193265]
[1771608511262,7.32609044,83.221,83.16,9.91116441]
[1771608511263,10.8184,83.217,83.173,10.8239]
[1771608511462,9.43005674,83.249,83.173,10.8239]
[1771608511662,7.33889404,83.248,83.173,10.8239]
[1771608511858,10.8182,83.218,83.173,10.8239]
[1771608512064,7.33879096,83.217,83.173,10.8239]
[1771608512265,10.8182,83.218,83.173,10.8239]
[1771608512563,7.3415337,83.217,83.173,57.52470825]
[1771608512764,10.8182,83.218,83.173,57.52470825]
[1771608512961,7.33981044,83.217,83.173,57.52470825]
[1771608513260,7.33981044,83.216,83.173,57.52470825]
[1771608513567,7.33981044,83.215,83.173,57.52470825]
[1771608513754,18.15861044,83.214,83.173,57.52470825]
[1771608514065,7.33981044,83.213,83.173,46.70080825]
[1771608514358,7.33981044,83.212,83.173,46.70080825]
[1771608514568,7.33981044,83.211,83.14,9.91116441]
[1771608514863,7.33981044,83.21,83.14,9.91116441]
[1771608515062,7.33981044,83.209,83.14,9.91116441]
[1771608515259,7.33981044,83.208,83.14,9.91116441]
[1771608515459,7.33981044,83.207,83.16,10.8257]
[1771608515654,7.33981044,83.206,83.16,10.8257]
[1771608515853,7.33981044,83.205,83.14,9.91116441]
[1771608516054,36.19,83.246,83.14,9.91116441]
[1771608516258,43.53326721,83.245,83.14,9.91116441]
[1771608516455,10.819,83.212,83.165,10.825]
[1771608516761,7.34326721,83.211,83.166,37.26397635]
[1771608516962,7.34326721,83.21,83.166,37.26397635]
[1771608517166,10.8195,83.208,83.168,37.26397635]
[1771608517365,7.34326721,83.207,83.168,37.26397635]
[1771608517563,10.8195,83.208,83.168,37.26397635]
[1771608517763,10.8181,83.219,83.17,37.27753692]
[1771608517962,7.34468056,83.218,83.17,37.27753692]
[1771608518168,7.34468056,83.217,83.17,37.27753692]
[1771608518364,10.8196,83.207,83.17,37.27753692]
[1771608518666,7.34468056,83.206,83.17,37.27753692]
[1771608518866,10.8196,83.207,83.17,37.27753692]
[1771608519169,7.3476466,83.206,83.17,37.27753692]
[1771608519370,7.3476466,83.205,83.17,37.27753692]
[1771608519571,7.3476466,83.204,83.17,37.27753692]
[1771608519873,7.3476466,83.203,83.17,37.27753692]
[1771608520066,10.8178,83.222,83.17,37.27753692]
[1771608520262,10.8185,83.216,83.17,37.27753692]
[1771608520569,7.34966975,83.215,83.17,37.27753692]
[1771608520871,7.34966975,83.214,83.17,37.27753692]
[1771608521170,10.8185,83.216,83.17,37.27753692]
[1771608521171,7.35380874,83.213,83.17,37.27753692]
[1771608521368,7.35380874,83.212,83.171,10.8243]
[1771608521670,7.35380874,83.211,83.171,10.8243]
[1771608521869,7.35380874,83.21,83.171,10.8243]
[1771608522068,7.35380874,83.209,83.178,10.8233]
[1771608522261,7.35380874,83.208,83.178,10.8233]
[1771608522464,10.8176,83.223,83.178,10.8233]
[1771608522665,10.8179,83.22,83.178,10.8233]
[1771608522965,7.35621159,83.219,83.178,10.8233]
[1771608523165,7.35621159,83.218,83.178,10.8233]
[1771608523365,7.35621159,83.217,83.178,10.8233]
[1771608523568,7.35621159,83.216,83.178,10.8233]
[1771608523766,7.35621159,83.215,83.178,10.8233]
[1771608523966,7.35621159,83.214,83.178,10.8233]
[1771608524169,7.35621159,83.213,83.178,10.8233]
[1771608524367,7.35621159,83.212,83.178,10.8233]
[1771608524574,7.35621159,83.211,83.178,10.8233]
[1771608524872,10.8179,83.22,83.178,10.8233]
[1771608525076,7.36125929,83.219,83.178,10.8233]
[1771608525368,7.36125929,83.218,83.184,10.8225]
[1771608525563,7.36125929,83.217,83.184,10.8225]
[1771608525760,10.8186,83.215,83.171,36.99737419]
[1771608525966,7.36125929,83.214,83.171,36.99737419]
[1771608526268,9.90669967,83.28,83.132,21.6587]
[1771608526269,10.8201,83.203,83.153,37.12712129]
[1771608526474,7.36125929,83.202,83.153,37.12712129]
[1771608526773,7.36125929,83.201,83.153,37.12712129]
[1771608526973,7.36125929,83.2,83.153,37.12712129]
[1771608527172,7.36125929,83.199,83.153,37.12712129]
[1771608527373,7.36125929,83.198,83.153,37.12712129]
[1771608527671,7.36125929,83.197,83.154,10.8264]
[1771608527866,10.8193,83.21,83.153,37.12712129]
[1771608528065,9.90669967,83.24,83.153,37.12712129]
[1771608528269,7.3611499,83.239,83.153,37.12712129]
[1771608528471,7.3611499,83.238,83.153,37.12712129]
[1771608528673,7.3611499,83.237,83.153,37.12712129]
[1771608528984,7.3611499,83.236,83.153,37.12712129]
[1771608529273,10.8183,83.217,83.17,37.18187237]
[1771608529573,7.3611499,83.216,83.17,37.18187237]
[1771608529866,9.90669967,83.24,83.17,37.18187237]
[1771608529867,7.3611499,83.215,83.17,37.18187237]
[1771608530069,7.3611499,83.214,83.179,10.8232]
[1771608530270,7.3611499,83.214,83.17,37.18187237]
[1771608530271,7.3611499,83.213,83.17,37.18187237]
[1771608530575,7.3611499,83.212,83.158,10.8259]
[1771608530873,9.90669967,83.24,83.156,37.20129189]
[1771608530874,7.3611499,83.211,83.156,37.20129189]
[1771608531066,10.8191,83.211,83.172,37.20129189]
[1771608531470,9.90669967,83.24,83.172,37.20129189]
[1771608531665,7.36315254,83.239,83.172,37.20129189]
[1771608531975,10.82213145,83.263,83.118,168.4857]
[1771608531976,9.43005674,83.283,83.207,37.20574667]
[1771608532271,9.90669967,83.29,83.207,37.20574667]
[1771608532472,10.8147,83.245,83.207,37.20574667]
[1771608533772,10.8138,83.252,83.207,37.20574667]
[1771608533973,21.6184,83.288,83.151,168.4176]
[1771608533974,9.43005674,83.299,83.231,37.17520095]
[1771608534172,3.69516402,83.31,83.261,37.17520095]
[1771608534573,10.8054,83.317,83.271,37.84206795]
[1771608535076,3.69516402,83.32,83.272,37.84206795]
[1771608535470,3.69516402,83.32,83.273,48.6580695]
[1771608535866,10.8041,83.326,83.273,48.6580695]
[1771608536470,10.8052,83.318,83.273,37.8471695]
[1771608536873,9.8809556,83.34,83.255,37.98645255]
[1771608536874,36.19,83.339,83.255,37.98645255]
[1771608537571,9.8809556,83.34,83.258,37.99168524]
[1771608538772,10.8048,83.321,83.266,10.8119]
[1771608538968,10.8048,83.321,83.266,48.757476]
[1771608539168,9.8809556,83.32,83.241,37.945576]
[1771608540374,9.8809556,83.32,83.175,168.3686]
[1771608540375,9.8809556,83.32,83.248,37.95058689]
[1771608540976,10.8058,83.313,83.251,37.99314619]
[1771608541178,9.8809556,83.34,83.251,37.99314619]
[1771608541377,9.8809556,83.34,83.261,37.99809127]
[1771608541574,10.803,83.335,83.274,37.99809127]
[1771608542679,10.803,83.335,83.279,38.05525638]
[1771608544079,10.8053,83.317,83.26,9.8809556]
[1771608544279,10.8053,83.317,83.263,38.0601491]
[1771608545074,10.8066,83.307,83.263,38.0601491]
[1771608547982,10.8055,83.316,83.263,38.0601491]
[1771608548185,7.09752335,83.348,83.263,38.0601491]
[1771608548386,7.09752335,83.347,83.263,38.0601491]
[1771608548586,7.09752335,83.346,83.263,38.0601491]
[1771608548785,7.09752335,83.345,83.263,38.0601491]
[1771608548985,9.8809556,83.35,83.263,38.0601491]
[1771608548986,7.09752335,83.344,83.263,38.0601491]
[1771608549183,7.09752335,83.343,83.263,38.0601491]
[1771608549386,9.8809556,83.35,83.263,38.0601491]
[1771608549893,9.8809556,83.35,83.227,36.19]
[1771608549894,7.09752335,83.349,83.228,43.30358028]
[1771608550185,9.8809556,83.28,83.208,43.30358028]
[1771608550381,10.8134,83.255,83.208,43.30358028]
[1771608550585,7.09752335,83.305,83.208,43.30358028]
[1771608550785,9.8809556,83.29,83.208,43.30358028]
[1771608550986,10.8121,83.265,83.208,43.30358028]
[1771608551188,9.8809556,83.29,83.208,43.30358028]
[1771608551389,10.813,83.258,83.208,43.30358028]
[1771608551686,9.8809556,83.3,83.221,43.01543488]
[1771608551878,10.8094,83.286,83.221,43.01543488]
[1771608553688,10.8094,83.286,83.231,10.8163]
[1771608553987,10.8094,83.286,83.232,44.71993494]
[1771608555084,10.8104,83.278,83.232,44.71993494]
[1771608555478,9.8809556,83.3,83.232,44.71993494]
[1771608555885,9.8809556,83.3,83.234,44.77866887]
[1771608557391,10.8088,83.29,83.234,44.77866887]
[1771608559884,10.8102,83.28,83.234,44.77866887]
[1771608560087,7.09752335,83.299,83.234,44.77866887]
[1771608560287,7.09752335,83.298,83.234,44.77866887]
[1771608560487,9.8809556,83.3,83.234,44.77866887]
[1771608560685,10.809,83.289,83.236,44.82047009]
[1771608562698,9.8809556,83.3,83.239,44.83633465]
[1771608562699,10.8078,83.298,83.239,44.83633465]
[1771608563000,9.8809556,83.32,83.239,44.83633465]
[1771608563196,10.8064,83.309,83.259,10.8127]
[1771608563691,10.8064,83.309,83.259,55.65008912]
[1771608563891,3.69108124,83.3,83.259,55.65008912]
[1771608565198,3.69108124,83.33,83.28,55.65871046]
[1771608565500,3.69108124,83.34,83.291,44.84973456]
[1771608565692,3.69108124,83.32,83.271,44.84973456]
[1771608566390,3.69108124,83.32,83.283,55.65943456]
[1771608566594,3.69108124,83.34,83.283,44.84973456]
[1771608566789,14.49348124,83.34,83.291,55.76325907]
[1771608566994,3.69108124,83.34,83.291,44.95455907]
[1771608568093,7.10179291,83.353,83.291,44.95455907]
[1771608569799,10.8034,83.333,83.291,44.95455907]
[1771608570399,10.8034,83.333,83.292,10.8085]
[1771608570588,7.10179291,83.35,83.291,44.95455907]
[1771608570795,7.10179291,83.353,83.291,44.95455907]
[1771608571090,7.10179291,83.352,83.291,44.95455907]
[1771608571295,7.10179291,83.351,83.291,44.95455907]
[1771608571495,7.10179291,83.35,83.291,44.95455907]
[1771608571695,7.10179291,83.35,83.203,22.1571659]
[1771608571696,9.87655251,83.34,83.251,44.92072139]
[1771608571893,9.87655251,83.31,83.251,44.92072139]
[1771608572299,7.10179291,83.309,83.251,44.92072139]
[1771608572490,9.87655251,83.27,83.181,44.92999641]
[1771608572689,7.10179291,83.269,83.181,44.92999641]
[1771608572894,10.8154,83.24,83.184,44.92999641]
[1771608573093,9.87655251,83.25,83.184,44.92999641]
[1771608573297,7.12058084,83.249,83.184,44.92999641]
[1771608573493,9.87655251,83.27,83.184,44.92999641]
[1771608573494,7.12058084,83.248,83.184,44.92999641]
[1771608573695,10.814,83.251,83.188,44.93097637]
[1771608573892,7.11783278,83.25,83.188,44.93097637]
[1771608574089,7.11783278,83.249,83.188,44.93097637]
[1771608574296,7.11783278,83.248,83.188,44.93097637]
[1771608574505,9.87655251,83.24,83.188,44.93097637]
[1771608574800,7.11783278,83.239,83.188,44.93097637]
[1771608574996,9.87655251,83.24,83.188,44.93097637]
[1771608574997,10.816,83.235,83.188,44.93097637]
[1771608575201,9.87655251,83.24,83.101,168.52]
[1771608575202,7.11783278,83.234,83.161,44.57204892]
[1771608575403,7.11783278,83.233,83.161,44.57204892]
[1771608575599,7.11783278,83.232,83.161,44.57204892]
[1771608575800,7.11783278,83.231,83.161,44.57204892]
[1771608576000,7.11783278,83.23,83.161,44.57204892]
[1771608576198,7.11783278,83.229,83.161,44.57204892]
[1771608576400,7.11783278,83.228,83.161,44.57204892]
[1771608576601,7.11783278,83.227,83.161,44.57204892]
[1771608576903,17.93503278,83.226,83.161,55.39764892]
[1771608577093,7.11783278,83.225,83.161,55.39764892]
[1771608577294,7.11783278,83.224,83.161,55.39764892]
[1771608577503,7.11783278,83.223,83.161,55.39764892]
[1771608577703,7.11783278,83.222,83.173,45.29994961]
[1771608577898,10.8159,83.236,83.173,45.29994961]
[1771608578092,9.87655251,83.24,83.173,45.29994961]
[1771608578093,7.11418828,83.235,83.173,45.29994961]
[1771608578292,9.87655251,83.24,83.173,45.29994961]
[1771608578498,10.8157,83.237,83.178,45.31945362]
[1771608578805,7.11535297,83.236,83.178,45.31945362]
[1771608579005,10.8166,83.231,83.178,45.31945362]
[1771608579205,9.87655251,83.24,83.178,45.31945362]
[1771608579206,7.11535297,83.23,83.178,45.31945362]
[1771608579395,7.11535297,83.229,83.178,45.31945362]
[1771608579599,7.11535297,83.228,83.178,45.31945362]
[1771608579906,9.87655251,83.24,83.178,45.31945362]
[1771608580208,7.10985058,83.239,83.178,45.31945362]
[1771608580501,7.10985058,83.238,83.178,45.31945362]
[1771608580699,10.8173,83.225,83.178,45.31945362]
[1771608581809,17.92023473,83.237,83.178,45.31945362]
[1771608582107,7.10443473,83.236,83.178,45.31945362]
[1771608582306,7.10443473,83.235,83.178,45.31945362]
[1771608582507,10.8158,83.237,83.16,9.87655251]
[1771608582508,7.10443473,83.234,83.18,44.88600443]
[1771608582707,8.77922746,83.265,83.18,44.88600443]
[1771608582908,9.87655251,83.25,83.18,44.88600443]
[1771608583104,7.1002938,83.249,83.18,44.88600443]
[1771608583311,7.1002938,83.248,83.18,44.88600443]
[1771608583502,7.1002938,83.247,83.18,44.88600443]
[1771608583701,10.8179,83.221,83.18,44.88600443]
[1771608587702,10.8166,83.23,83.18,44.88600443]
[1771608588315,7.1002938,83.258,83.18,44.88600443]
[1771608588612,9.90205135,83.26,83.18,44.88600443]
[1771608589013,10.8156,83.238,83.183,45.02546022]
[1771608589406,9.90205135,83.26,83.183,45.02546022]
[1771608590707,10.8145,83.246,83.194,10.8212]
[1771608590908,10.8145,83.246,83.195,44.92810008]
[1771608591916,10.8145,83.246,83.202,44.92886508]
[1771608593420,10.8135,83.254,83.204,45.11482922]
[1771608594513,9.90205135,83.28,83.18,9.90205135]
[1771608594514,10.8144,83.248,83.206,45.12059198]
[1771608596419,10.8144,83.248,83.197,10.8208]
[1771608596420,7.09498363,83.247,83.189,45.1276367]
[1771608596621,7.09498363,83.246,83.189,45.1276367]
[1771608596820,9.90205135,83.24,83.189,45.1276367]
[1771608597120,7.09498363,83.239,83.189,45.1276367]
[1771608597324,9.90205135,83.24,83.189,45.1276367]
[1771608598115,10.8153,83.241,83.194,45.12834981]
[1771608598326,7.09498363,83.259,83.194,45.12834981]
[1771608598528,7.09498363,83.258,83.194,45.12834981]
[1771608598726,7.09498363,83.257,83.194,45.12834981]
[1771608598928,10.8139,83.251,83.203,44.9476483]
[1771608600223,10.8127,83.26,83.216,44.94834315]
[1771608600427,9.90205135,83.28,83.216,44.94834315]
[1771608600630,9.90205135,83.28,83.16,9.90205135]
[1771608600631,7.09498363,83.279,83.181,45.17341782]
[1771608600828,168.0997,83.309,83.186,45.17341782]
[1771608600829,9.90205135,83.26,83.186,45.17341782]
[1771608601030,168.1325,83.293,83.186,45.17341782]
[1771608601031,7.09498363,83.277,83.186,45.17341782]
[1771608601331,10.8111,83.273,83.221,45.17411334]
[1771608601526,7.09498363,83.279,83.221,45.17411334]
[1771608601725,7.09498363,83.278,83.221,45.17411334]
[1771608601922,9.90205135,83.28,83.221,45.17411334]
[1771608602121,7.09498363,83.279,83.221,45.17411334]
[1771608602323,9.90205135,83.25,83.151,45.30889474]
[1771608602529,9.90205135,83.23,83.151,45.30889474]
[1771608602730,9.90205135,83.23,83.155,45.30889474]
[1771608603225,9.90205135,83.23,83.166,45.30889474]
[1771608603626,7.09498363,83.249,83.166,45.30889474]
[1771608603831,9.90205135,83.25,83.171,45.30959404]
[1771608604030,9.90205135,83.27,83.171,45.30959404]
[1771608604633,10.8133,83.256,83.202,45.08467617]
[1771608605134,10.8116,83.269,83.206,45.08467617]
[1771608605328,9.90205135,83.29,83.211,45.08529943]
[1771608605722,10.81,83.281,83.23,45.08529943]
[1771608605926,9.90205135,83.31,83.23,45.08529943]
[1771608606126,10.8073,83.302,83.242,10.815]
[1771608606331,7.09498363,83.341,83.271,45.07276327]
[1771608606530,9.90205135,83.36,83.271,45.07276327]
[1771608606728,6.90826634,83.342,83.271,45.07276327]
[1771608606924,9.90205135,83.36,83.271,45.07276327]
[1771608607332,10.8021,83.342,83.271,55.88396327]
[1771608607638,9.90205135,83.34,83.271,45.07276327]
[1771608607825,10.8031,83.334,83.271,45.07276327]
[1771608608025,9.90205135,83.34,83.271,45.07276327]
[1771608608531,10.8042,83.326,83.271,45.07276327]
[1771608610324,9.90205135,83.38,83.301,45.28667017]
[1771608610525,10.8,83.358,83.301,45.28667017]
[1771608611030,2.08870389,83.393,83.281,45.15781355]
[1771608611031,9.90205135,83.36,83.281,45.15781355]
[1771608611838,9.90205135,83.34,83.281,45.15781355]
[1771608612632,9.90205135,83.34,83.26,9.90205135]
[1771608612833,6.90977705,83.339,83.261,45.02054696]
[1771608613035,6.90977705,83.338,83.261,45.02054696]
[1771608613341,9.90205135,83.32,83.231,45.02054696]
[1771608613840,10.8058,83.314,83.233,45.02116417]
[1771608614341,10.8072,83.303,83.233,45.02116417]
[1771608615942,10.8058,83.314,83.233,45.02116417]
[1771608616148,9.90205135,83.32,83.233,45.02116417]
[1771608616647,10.8057,83.314,83.236,44.88180449]
[1771608616942,10.8057,83.314,83.241,44.88180449]
[1771608617149,10.8072,83.303,83.241,44.88180449]
[1771608617347,6.90977705,83.309,83.241,44.88180449]
[1771608617546,9.90205135,83.31,83.241,44.88180449]
[1771608617547,6.90977705,83.308,83.241,44.88180449]
[1771608617850,6.90977705,83.307,83.241,44.88180449]
[1771608618044,6.90977705,83.306,83.241,44.88180449]
[1771608618244,10.8068,83.306,83.241,44.88180449]
[1771608618849,9.12143389,83.363,83.254,44.66356078]
[1771608618850,9.90205135,83.35,83.254,44.66356078]
[1771608619047,9.90205135,83.33,83.254,44.66356078]
[1771608619344,6.90977705,83.329,83.254,44.66356078]
[1771608619546,9.90205135,83.33,83.254,44.66356078]
[1771608619547,10.8068,83.306,83.254,44.66356078]
[1771608619741,6.90977705,83.329,83.254,44.66356078]
[1771608619949,6.90977705,83.328,83.254,44.66356078]
[1771608620149,10.8066,83.308,83.254,44.66356078]
[1771608621247,10.8053,83.318,83.256,44.78065846]
[1771608621447,9.90205135,83.35,83.256,44.78065846]
[1771608621646,10.93019023,83.369,83.22,31.53775135]
[1771608621647,6.90977705,83.363,83.271,44.77725138]
[1771608621849,6.90977705,83.362,83.271,44.77725138]
[1771608622049,10.8024,83.34,83.283,10.8096]
[1771608622249,10.8024,83.34,83.284,44.77725138]
[1771608622447,6.90977705,83.359,83.284,44.77725138]
[1771608622654,9.90205135,83.35,83.284,44.77725138]
[1771608622953,9.90205135,83.33,83.25,9.90205135]
[1771608623745,9.90205135,83.33,83.195,21.6423]
[1771608623952,9.90205135,83.33,83.23,9.90205135]
[1771608624348,6.90977705,83.34,83.25,9.90205135]
[1771608624553,6.90977705,83.349,83.25,9.90205135]
[1771608624750,10.8032,83.334,83.282,35.2391587]
[1771608624954,6.90977705,83.365,83.282,35.2391587]
[1771608625150,6.90977705,83.364,83.282,35.2391587]
[1771608625355,6.90977705,83.363,83.282,35.2391587]
[1771608625548,6.90977705,83.362,83.282,35.2391587]
[1771608625749,9.90205135,83.35,83.282,35.2391587]
[1771608626355,10.8036,83.33,83.282,46.0489587]
[1771608626658,10.8036,83.33,83.283,34.91013444]
[1771608626852,6.90977705,83.367,83.304,34.91013444]
[1771608627048,9.90205135,83.37,83.304,34.91013444]
[1771608627248,6.90977705,83.369,83.304,34.91013444]
[1771608627455,10.8021,83.342,83.286,34.90825154]
[1771608628053,20.70315135,83.35,83.287,34.90825154]
[1771608628354,9.90205135,83.35,83.287,34.90825154]
[1771608628748,9.90205135,83.35,83.241,21.6303]
[1771608628749,9.90205135,83.35,83.288,34.92134393]
[1771608628954,9.90205135,83.37,83.288,34.92134393]
[1771608629353,9.90205135,83.37,83.302,34.91951066]
[1771608629855,6.90977705,83.384,83.302,34.91951066]
[1771608630055,6.90977705,83.383,83.302,34.91951066]
[1771608630256,6.90977705,83.382,83.302,34.91951066]
[1771608630452,6.90977705,83.381,83.308,34.88306546]
[1771608630654,6.90977705,83.38,83.308,34.88306546]
[1771608630857,6.90977705,83.379,83.308,34.88306546]
[1771608631056,10.7985,83.37,83.308,34.88306546]
[1771608631357,6.90977705,83.377,83.308,34.88306546]
[1771608631558,6.90977705,83.376,83.308,34.88306546]
[1771608631761,6.90977705,83.389,83.308,34.88306546]
[1771608631959,6.90977705,83.388,83.308,34.88306546]
[1771608632154,10.7978,83.375,83.318,34.88131508]
[1771608632358,6.90977705,83.386,83.318,34.88131508]
[1771608632558,9.90205135,83.39,83.318,34.88131508]
[1771608632760,445.0,83.436,83.31,9.90205135]
[1771608632761,6.90977705,83.395,83.328,34.78723544]
[1771608632958,6.90977705,83.394,83.328,34.78723544]
[1771608633160,6.90977705,83.409,83.331,34.78723544]
[1771608633355,10.7948,83.399,83.343,10.8018]
[1771608633557,6.90977705,83.407,83.344,34.78552405]
[1771608633862,6.90977705,83.419,83.344,34.78552405]
[1771608634068,10.7948,83.398,83.344,34.78552405]
[1771608634255,6.90977705,83.417,83.344,34.78552405]
[1771608634455,6.90977705,83.416,83.344,34.78552405]
[1771608634658,10.7949,83.398,83.345,34.52924761]
[1771608634962,6.90977705,83.414,83.345,34.52924761]
[1771608635163,6.90977705,83.439,83.351,34.52924761]
[1771608635363,10.7914,83.425,83.363,34.52924761]
[1771608635662,29.57699421,83.44,83.363,34.52924761]
[1771608635855,29.57699421,83.44,83.35,9.90205135]
[1771608635856,19.67494286,83.44,83.375,34.52766176]
[1771608636060,9.90205135,83.48,83.391,29.18548589]
[1771608636257,6.90977705,83.498,83.423,29.18548589]
[1771608636560,9.90205135,83.48,83.423,29.18548589]
[1771608636959,9.90205135,83.46,83.393,29.18548589]
[1771608637465,10.7902,83.434,83.393,29.18548589]
[1771608637659,21.35394052,83.46,83.393,29.18548589]
[1771608637864,11.45188917,83.459,83.393,29.18548589]
[1771608638167,10.7902,83.435,83.393,29.18548589]
[1771608638466,6.90977705,83.483,83.351,27.98869591]
[1771608638467,11.9282823,83.439,83.351,27.98869591]
[1771608638669,10.7923,83.418,83.362,27.98869591]
[1771608639562,11.9282823,83.439,83.374,27.98869591]
[1771608640163,9.90205135,83.44,83.374,27.98869591]
[1771608641065,10.792,83.42,83.374,27.98869591]
[1771608641259,9.90205135,83.44,83.374,27.98869591]
[1771608641768,10.7904,83.432,83.374,27.98869591]
[1771608642970,10.7917,83.422,83.374,27.98869591]
[1771608643266,11.94895945,83.439,83.374,27.98869591]
[1771608643672,10.7911,83.427,83.374,27.98869591]
[1771608644765,9.90205135,83.39,83.346,27.98869591]
[1771608644969,13.81204692,83.409,83.301,27.98869591]
[1771608645169,9.90205135,83.41,83.345,27.98869591]
[1771608645364,13.81204692,83.426,83.345,27.98869591]
[1771608645569,13.81247613,83.444,83.345,27.98869591]
[1771608645768,9.90205135,83.45,83.384,27.98869591]
[1771608645967,13.80710044,83.485,83.401,27.98869591]
[1771608646471,13.80710044,83.485,83.36,167.9951]
[1771608646472,9.90205135,83.47,83.381,27.98869591]
[1771608646673,13.80272812,83.469,83.381,27.98869591]
[1771608647370,10.7889,83.444,83.389,27.98869591]
[1771608647966,9.90205135,83.45,83.389,27.98869591]
[1771608648871,13.71837768,83.449,83.361,27.98869591]
[1771608649265,9.90205135,83.43,83.361,27.98869591]
[1771608649474,13.71884303,83.445,83.361,27.98869591]
[1771608649871,9.85860992,83.44,83.365,27.98869591]
[1771608650573,10.7924,83.417,83.365,27.98869591]
[1771608651071,10.7937,83.407,83.365,27.98869591]
[1771608651276,9.85860992,83.42,83.345,27.98869591]
[1771608651277,13.74733388,83.419,83.345,27.98869591]
[1771608652368,10.7948,83.398,83.345,27.98869591]
[1771608653571,13.74733388,83.419,83.347,27.98869591]
[1771608653772,178.66859274,83.48,83.347,27.98869591]
[1771608653773,13.75125022,83.429,83.347,27.98869591]
[1771608654171,13.75125022,83.429,83.356,27.98869591]
[1771608654774,13.75125022,83.429,83.358,27.98869591]
[1771608655477,10.7946,83.4,83.358,27.98869591]
[1771608655679,13.75125022,83.429,83.358,27.98869591]
[1771608656878,10.7935,83.408,83.358,27.98869591]
[1771608657080,13.75125022,83.429,83.358,27.98869591]
[1771608657265,13.90030903,83.409,83.338,27.98869591]
[1771608657472,9.85860992,83.43,83.341,27.98869591]
[1771608657673,9.85860992,83.43,83.367,27.98869591]
[1771608657869,10.7899,83.437,83.367,27.98869591]
[1771608658069,9.85860992,83.46,83.367,27.98869591]
[1771608658270,9.85860992,83.46,83.391,27.98869591]
[1771608658470,10.7895,83.44,83.391,27.98869591]
[1771608658667,36.05,83.457,83.391,27.98869591]
[1771608658878,9.85860992,83.44,83.373,27.98869591]
[1771608659981,9.85860992,83.44,83.378,27.98869591]
[1771608660771,9.85860992,83.44,83.357,27.98869591]
[1771608660772,14.1271251,83.439,83.357,27.98869591]
[1771608661373,10.7918,83.421,83.375,10.7978]
[1771608661975,14.1271251,83.439,83.357,27.98869591]
[1771608662173,14.1271251,83.439,83.34,9.85860992]
[1771608662174,10.7931,83.412,83.36,27.98869591]
[1771608662372,14.09382111,83.436,83.36,27.98869591]
[1771608662567,21.00359816,83.436,83.36,27.98869591]
[1771608662767,10.792,83.42,83.368,10.7986]
[1771608662979,10.792,83.42,83.369,27.98869591]
[1771608663580,10.793,83.413,83.369,27.98869591]
[1771608663772,6.90977705,83.412,83.341,27.98869591]
[1771608663975,10.7957,83.392,83.341,27.98869591]
[1771608664677,10.7966,83.385,83.341,27.98869591]
[1771608664873,9.85860992,83.4,83.341,27.98869591]
[1771608665485,10.7972,83.38,83.341,27.98869591]
[1771608665871,6.90977705,83.397,83.341,27.98869591]
[1771608666076,9.85860992,83.4,83.341,27.98869591]
[1771608666379,14.16338062,83.398,83.323,28.25079972]
[1771608666580,14.06467056,83.396,83.323,28.25079972]
[1771608666779,10.7971,83.381,83.326,28.25079972]
[1771608666971,36.05,83.409,83.326,28.25079972]
[1771608666972,9.85860992,83.38,83.326,28.25079972]
[1771608667177,2.99831282,83.379,83.326,28.25079972]
[1771608667488,2.99831282,83.378,83.326,28.25079972]
[1771608667685,10.8011,83.35,83.308,28.77941181]
[1771608668182,36.05,83.399,83.308,28.77941181]
[1771608668183,14.05512434,83.374,83.308,28.77941181]
[1771608668487,10.8002,83.357,83.311,28.77941181]
[1771608668685,2.99942872,83.356,83.311,28.77941181]
[1771608668887,10.8002,83.357,83.311,28.77941181]
[1771608669381,14.05512434,83.374,83.321,28.77941181]
[1771608669582,2.99942309,83.373,83.321,28.77941181]
[1771608669790,2.99942309,83.372,83.321,28.77941181]
[1771608669979,2.99942309,83.371,83.321,28.77941181]
[1771608670280,10.7988,83.368,83.321,28.77941181]
[1771608670485,2.99942309,83.367,83.321,28.77941181]
[1771608670683,2.99942309,83.366,83.321,28.77941181]
[1771608670880,2.99942309,83.365,83.321,28.77941181]
[1771608671080,10.7997,83.361,83.321,28.77941181]
[1771608671288,12.85803301,83.36,83.304,28.77941181]
[1771608671475,2.99942309,83.359,83.304,28.77941181]
[1771608671785,2.99942309,83.358,83.304,28.77941181]
[1771608671984,10.8014,83.347,83.304,28.77941181]
[1771608672189,2.99942309,83.346,83.304,28.77941181]
[1771608672486,2.99942309,83.345,83.304,28.77941181]
[1771608672685,2.99942309,83.344,83.304,28.77941181]
[1771608672884,2.99942309,83.343,83.304,28.77941181]
[1771608673084,2.99942309,83.357,83.304,28.77941181]
[1771608673286,10.8019,83.344,83.304,28.77941181]
[1771608674490,10.8003,83.356,83.306,28.77941181]
[1771608675387,12.14180223,83.359,83.267,28.77941181]
[1771608675583,12.14180223,83.355,83.267,28.77941181]
[1771608675783,12.1243448,83.353,83.267,28.77941181]